fUSD/lending_fUSD_20241220
["ID","MTS","AMOUNT","RATE_DAILY","PERIOD"]
[346093634,1734703840663,-283.07632793,0.00012999,2]
[346093635,1734703840673,-283.07632793,0.00012999,2]
[346093637,1734703840683,-283.07632793,0.00012999,2]
[346093639,1734703840692,-283.07632793,0.00012999,2]
[346093641,1734703840701,-800.0,0.00013,2]
[346093643,1734703840710,-65222.46194431,0.00013,2]
[346093646,1734703840730,-29720.08999998,0.00013,2]
[346093649,1734703840741,-4531.98874056,0.00013,2]
[346093651,1734703840753,-1092.8297712,0.00013,2]
[346093653,1734703840773,-281.48008961,0.00013,2]
[346093655,1734703840785,-992.79,0.00013,2]
[346093657,1734703840796,-937.5,0.00013,2]
[346093952,1734703843663,-357.36,0.000129,2]
[346093954,1734703843674,-33.33360774,0.000129,2]
[346093956,1734703843684,-1301.21634592,0.000129,2]
[346093957,1734703843695,-8171.45004634,0.00013,2]
[346093959,1734703843706,-1648.35,0.00013,2]
[346093962,1734703843719,-10105.0,0.00013,2]
[346094196,1734703846122,-772.09808,0.00012873,2]
[346094210,1734703846290,-5492.44600648,0.00012873,2]
[346094216,1734703846342,-6211.70562197,0.00012873,2]
[346094218,1734703846352,-3154.53242898,0.00013,2]
[346094220,1734703846363,-19012.0,0.00013,2]
[346094222,1734703846374,-380.27932092,0.00013,2]
[346094226,1734703846401,-3805.83049162,0.00013,2]
[346094233,1734703846456,-515.3982567,0.00013,2]
[346094235,1734703846467,-9556.41670945,0.00013,2]
[346094241,1734703846515,-648.56010815,0.00013,2]
[346094521,1734703918135,781.95,0.00012109,2]
[346094522,1734703934920,163.85,0.00012098,2]
[346094523,1734704056433,5000.0,0.000235,120]
[346094524,1734704088962,155.03,0.00016658,30]
[346094525,1734704089317,155.03,0.00019931,30]
[346094526,1734704168365,1000.0,0.00012021,2]
[346094527,1734704176111,1958.81,0.00010104,2]
[346094528,1734704216725,250.0,0.00011994,2]
[346094529,1734704311791,165.96,9.579e-05,2]
[346094530,1734704316560,1139.2,0.00011958,2]
[346094531,1734704353658,-300.0,0.000122,4]
[346094532,1734704353683,-600.0,0.000123,4]
[346094534,1734704412978,2.16,0.000123,2]
[346094535,1734704415265,23900.0,0.0001197,2]
[346094536,1734704439901,171.18,9.562e-05,2]
[346094537,1734704440119,171.18,0.00011952,2]
[346094539,1734704511305,553.98,0.00010137,2]
[346094541,1734704621612,250.0,0.00011878,2]
[346094542,1734704668291,250.0,0.00011838,2]
[346094543,1734704702955,150.0,0.00011688,2]
[346094544,1734704703293,150.0,0.00011769,2]
[346094545,1734704703630,150.0,0.0001185,2]
[346094546,1734704703970,150.0,0.00011931,2]
[346094547,1734704704298,150.0,0.00012012,2]
[346094548,1734704704629,150.0,0.00012093,2]
[346094549,1734704710509,150.0,0.00011688,2]
[346094550,1734704710843,150.0,0.00011947,2]
[346094551,1734704719415,150.0,0.00011688,2]
[346094552,1734704719597,10086.04392809,9e-05,2]
[346094553,1734704719754,150.0,0.00011806,2]
[346094554,1734704720073,150.0,0.00011924,2]
[346094555,1734704720716,150.0,0.00012042,2]
[346094556,1734704725205,150.79244376,0.00011688,2]
[346094557,1734704727094,12152.67481607,0.000235,120]
[346094558,1734704729147,4421.49343563,9e-05,2]
[346094561,1734704749796,160.402479,0.0002025,30]
[346094562,1734704749862,150.0,0.00011688,2]
[346094563,1734704752550,8238.37148829,0.00015,10]
[346094564,1734704753404,5985.16014736,6.94e-05,2]
[346094565,1734704761126,14788.7808525,9.8e-05,2]
[346094566,1734704782154,163.89,0.00011766,2]
[346094567,1734704829052,16510.62169672,0.00021,120]
[346094569,1734704838388,600.0,0.00012,4]
[346094570,1734704840495,1200.0,0.000121,4]
[346094574,1734704857363,4500.01229061,9e-05,2]
[346094575,1734704867768,159.859175,0.0002025,30]
[346094576,1734704879167,1200.0,0.00012,4]
[346094577,1734704881272,2400.0,0.000121,4]
[346094579,1734704913053,2609.60172076,0.0001,2]
[346094584,1734704936157,155.12,0.00016658,30]
[346094585,1734704936474,155.12,0.00020164,30]
[346094599,1734705003730,483.68462989,0.000235,120]
[346094687,1734705013014,900.0,0.00012,4]
[346094688,1734705015008,1900.0,0.000121,4]
[346094700,1734705032396,1071.14,0.00011703,2]
[346094702,1734705032422,-150.0,0.0001216,2]
[346094703,1734705032432,-150.0,0.00012175,2]
[346094704,1734705032442,-72.05445868,0.000122,4]
[346094705,1734705032454,-1192.54019342,0.000122,4]
[346094706,1734705032465,-269.39475118,0.000122,4]
[346094707,1734705032488,-266.01059672,0.000122,4]
[346094708,1734705032498,-3600.0,0.000122,4]
[346094709,1734705032507,-2900.0,0.000122,4]
[346094710,1734705032516,-150.0,0.00012207,2]
[346094711,1734705032526,-168.85,0.00012241,2]
[346094712,1734705032535,-150.0,0.00012256,2]
[346094713,1734705032544,-5511.3673,0.00012267,2]
[346094714,1734705032553,-150.0,0.00012278,2]
[346094715,1734705032563,-2400.0,0.000123,4]
[346094716,1734705032572,-4800.0,0.000123,4]
[346094717,1734705032581,-3800.0,0.000123,4]
[346094718,1734705032590,-150.0,0.00012337,2]
[346094719,1734705032600,-555.39,0.0001235,2]
[346094720,1734705032609,-1958.81,0.00012367,2]
[346094721,1734705032618,-150.0,0.00012396,2]
[346094722,1734705032628,-3000.0,0.000124,4]
[346094723,1734705032638,-6000.0,0.000124,4]
[346094724,1734705032647,-4653.2314419,0.000124,4]
[346094725,1734705032692,-146.7685581,0.000124,4]
[346094726,1734705032701,-150.0,0.00012418,2]
[346094727,1734705032710,-150.0,0.00012467,2]
[346094728,1734705032720,-150.0,0.00012499,2]
[346094729,1734705032729,-600.0,0.000125,4]
[346094730,1734705032742,-492.5814419,0.000125,4]
[346094731,1734705032754,-707.4185581,0.000125,4]
[346094732,1734705032763,-900.0,0.000125,4]
[346094733,1734705032772,-150.0,0.00012514,2]
[346094734,1734705032781,-150.0,0.0001258,2]
[346094735,1734705032791,-167.35,0.0001259,2]
[346094736,1734705032800,-600.0,0.000126,4]
[346094737,1734705032810,-1200.0,0.000126,4]
[346094738,1734705032819,-900.0,0.000126,4]
[346094739,1734705032828,-150.0,0.00012632,2]
[346094740,1734705032838,-500.0,0.00012658,2]
[346094741,1734705032848,-150.0,0.00012662,2]
[346094742,1734705032857,-25.2314419,0.00012685,2]
[346094743,1734705032869,-541.7685581,0.00012685,2]
[346094744,1734705032879,-600.0,0.000127,4]
[346094745,1734705032888,-1200.0,0.000127,4]
[346094746,1734705032898,-1378.0,0.000127,2]
[346094747,1734705032909,-900.0,0.000127,4]
[346094749,1734705032920,-150.0,0.00012727,2]
[346094752,1734705032930,-150.0,0.00012743,2]
[346094755,1734705032953,-150.0,0.0001275,2]
[346094758,1734705032969,-428.73991121,0.00012771,2]
[346094760,1734705032989,-318.0,0.00012795,2]
[346094763,1734705033006,-800.70213071,0.000128,2]
[346094765,1734705033049,-348.89010204,0.000128,2]
[346094766,1734705033096,-8267.44629021,0.000128,2]
[346094767,1734705033115,-1000.0,0.000128,2]
[346094768,1734705033136,-600.0,0.000128,4]
[346094769,1734705033155,-1200.0,0.000128,4]
[346094770,1734705033173,-5685.05141923,0.000128,2]
[346094771,1734705033190,-900.0,0.000128,4]
[346094772,1734705033207,-5685.05141916,0.00012811,2]
[346094773,1734705033226,-5685.05141916,0.00012822,2]
[346094774,1734705033248,-150.0,0.00012824,2]
[346094775,1734705033265,-5685.05141916,0.00012833,2]
[346094776,1734705033283,-5685.05141916,0.00012844,2]
[346094777,1734705033300,-3502.804,0.00012854,2]
[346094778,1734705033316,-162.374,0.00012854,2]
[346094779,1734705033333,-163.85,0.00012854,2]
[346094780,1734705033350,-5685.05141916,0.00012856,2]
[346094781,1734705033368,-168.8545,0.00012859,2]
[346094782,1734705033387,-5685.05141916,0.00012867,2]
[346094783,1734705033407,-150.0,0.00012868,2]
[346094784,1734705033423,-221.7158,0.0001287,2]
[346094785,1734705033439,-7488.0,0.0001287,2]
[346094786,1734705033456,-3000.0,0.0001287,2]
[346094787,1734705033472,-155.48240775,0.0001287,2]
[346094788,1734705033488,-5685.05141916,0.00012878,2]
[346094789,1734705033504,-5685.05141916,0.00012889,2]
[346094790,1734705033520,-3889.14885825,0.00012899,2]
[346094791,1734705033535,-4323.8396,0.000129,2]
[346094792,1734705033551,-1647.1748,0.000129,2]
[346094793,1734705033566,-8008.4165,0.000129,2]
[346094794,1734705033582,-174.96309881,0.000129,2]
[346094795,1734705033597,-3000.0,0.000129,2]
[346094796,1734705033613,-817.0,0.000129,4]
[346094797,1734705033629,-1500.0,0.000129,4]
[346094798,1734705033645,-72132.4862534,0.000129,2]
[346094799,1734705033664,-6912.83175333,0.000129,2]
[346094800,1734705033681,-330.94584508,0.000129,2]
[346094801,1734705033696,-324.40277758,0.000129,2]
[346094802,1734705033711,-155.48240775,0.000129,2]
[346094803,1734705033726,-5685.05141916,0.000129,2]
[346094804,1734705033742,-1500.0,0.000129,4]
[346094805,1734705033757,-150.0,0.00012905,2]
[346094806,1734705033773,-13668.0,0.00012959,2]
[346094807,1734705033788,-21563.0,0.00012959,2]
[346094808,1734705033804,-3000.0,0.0001297,2]
[346094809,1734705033820,-501.98389467,0.00012973,2]
[346094810,1734705033835,-500.0,0.00012973,2]
[346094811,1734705033850,-508.95722996,0.00012973,2]
[346094812,1734705033866,-493.76693344,0.00012973,2]
[346094813,1734705033882,-470.67863162,0.00012973,2]
[346094814,1734705033897,-500.0,0.00012973,2]
[346094815,1734705033917,-203.95078876,0.00012973,2]
[346094816,1734705033933,-500.0,0.00012973,2]
[346094817,1734705033948,-261.39845304,0.00012973,2]
[346094818,1734705033964,-150.0,0.00012986,2]
[346094819,1734705033980,-150.0,0.00012986,2]
[346094820,1734705033996,-150.0,0.00012986,2]
[346094821,1734705034011,-150.0,0.00012986,2]
[346094822,1734705034027,-1000.0,0.00012999,2]
[346094823,1734705034044,-50000.0,0.00012999,2]
[346094824,1734705034060,-1046.03663148,0.00012999,3]
[346094825,1734705034077,-1046.03663148,0.00012999,3]
[346094826,1734705034093,-1046.03663148,0.00012999,3]
[346094827,1734705034109,-1046.0366315,0.00012999,3]
[346094828,1734705034125,-500.0,0.00012999,2]
[346094829,1734705034140,-5107.41965413,0.00012999,2]
[346094830,1734705034159,-1214.96573401,0.00012999,3]
[346094831,1734705034175,-1214.96573401,0.00012999,3]
[346094832,1734705034191,-1214.965734,0.00012999,3]
[346094833,1734705034207,-226.46106235,0.00012999,2]
[346094834,1734705034223,-226.46106235,0.00012999,2]
[346094835,1734705034240,-226.46106235,0.00012999,2]
[346094836,1734705034253,-226.46106235,0.00012999,2]
[346094837,1734705034263,-226.46106235,0.00012999,2]
[346094838,1734705034277,-226.46106235,0.00012999,2]
[346094839,1734705034288,-226.46106235,0.00012999,2]
[346094840,1734705034526,-226.46106235,0.00012999,2]
[346094841,1734705034556,-226.46106235,0.00012999,2]
[346094842,1734705034566,-226.46106235,0.00012999,2]
[346094843,1734705034576,-226.46106235,0.00012999,2]
[346094844,1734705034585,-226.46106235,0.00012999,2]
[346094845,1734705034594,-226.46106235,0.00012999,2]
[346094846,1734705034604,-226.46106235,0.00012999,2]
[346094847,1734705034613,-226.46106235,0.00012999,2]
[346094848,1734705034623,-226.46106235,0.00012999,2]
[346094849,1734705034632,-226.46106235,0.00012999,2]
[346094850,1734705034642,-226.46106235,0.00012999,2]
[346094851,1734705034653,-226.46106235,0.00012999,2]
[346094852,1734705034663,-226.46106235,0.00012999,2]
[346094853,1734705034673,-226.46106235,0.00012999,2]
[346094854,1734705034683,-226.46106235,0.00012999,2]
[346094855,1734705034693,-226.46106235,0.00012999,2]
[346094856,1734705034702,-226.46106235,0.00012999,2]
[346094857,1734705034712,-226.46106235,0.00012999,2]
[346094858,1734705034722,-226.46106235,0.00012999,2]
[346094859,1734705034731,-771.0,0.00013,2]
[346094860,1734705034741,-248955.33151263,0.00013,2]
[346094861,1734705035193,-43010.79713,0.00013,2]
[346094862,1734705035217,-1196.511476,0.00013,2]
[346094863,1734705035229,-1204.56856532,0.00013,2]
[346094864,1734705035240,-604.32310367,0.00013,2]
[346094865,1734705035252,-519.48833101,0.00013,2]
[346094866,1734705035263,-437.7779378,0.00013,2]
[346094867,1734705035279,-5601.57969321,0.00013,2]
[346094868,1734705035340,-959.18225948,0.00013,2]
[346094871,1734705038361,-3381.22978117,0.000129,2]
[346094872,1734705038418,-74576.96329915,0.000129,2]
[346094873,1734705038428,-406.83774507,0.00012973,2]
[346094874,1734705038437,-504.25916683,0.00012998,2]
[346094875,1734705038447,-500.0,0.00012998,2]
[346094876,1734705038457,-500.0,0.00012998,2]
[346094877,1734705038468,-500.0,0.00012998,2]
[346094878,1734705038478,-500.0,0.00012998,2]
[346094879,1734705038488,-500.0,0.00012998,2]
[346094880,1734705038497,-500.0,0.00012998,2]
[346094881,1734705038507,-595.56869403,0.00012998,2]
[346094882,1734705038516,-184.18669074,0.00012998,2]
[346094883,1734705038526,-500.0,0.00012998,2]
[346094884,1734705038535,-500.0,0.00012998,2]
[346094885,1734705038545,-500.0,0.00012998,2]
[346094886,1734705038555,-500.0,0.00012998,2]
[346094887,1734705038565,-500.0,0.00012998,2]
[346094888,1734705038575,-525.1228928,0.00012998,2]
[346094889,1734705038585,-156.1234115,0.00012998,2]
[346094890,1734705038595,-500.0,0.00012998,2]
[346094891,1734705038605,-472.7314189,0.00012998,2]
[346094892,1734705038614,-500.0,0.00012998,2]
[346094893,1734705038624,-500.0,0.00012998,2]
[346094894,1734705038633,-500.0,0.00012998,2]
[346094895,1734705038643,-500.0,0.00012998,2]
[346094896,1734705038660,-500.0,0.00012998,2]
[346094897,1734705038669,-500.0,0.00012998,2]
[346094898,1734705038679,-500.0,0.00012998,2]
[346094899,1734705038689,-226.46106235,0.00012999,2]
[346094900,1734705038698,-226.46106235,0.00012999,2]
[346094901,1734705038707,-226.46106235,0.00012999,2]
[346094902,1734705038716,-226.46106235,0.00012999,2]
[346094903,1734705038726,-4754373.67042734,0.00013,2]
[346094904,1734705038736,-816.25770212,0.00013,2]
[346094905,1734705038746,-2761492.0640113,0.00013,2]
[346094906,1734705038756,-5311491.83769597,0.00013,2]
[346094907,1734705038766,-600.0,0.00013,2]
[346094908,1734705038776,-250.0,0.00013,2]
[346094909,1734705038786,-250.0,0.00013,2]
[346094910,1734705038797,-250.0,0.00013,2]
[346094911,1734705038807,-250.0,0.00013,2]
[346094912,1734705038816,-250.0,0.00013,2]
[346094913,1734705038826,-250.0,0.00013,2]
[346094914,1734705038836,-250.0,0.00013,2]
[346094915,1734705038846,-250.0,0.00013,2]
[346094916,1734705038856,-250.0,0.00013,2]
[346094917,1734705038866,-250.0,0.00013,2]
[346094918,1734705038875,-250.0,0.00013,2]
[346094919,1734705038885,-250.0,0.00013,2]
[346094920,1734705038894,-250.0,0.00013,2]
[346094921,1734705038911,-250.0,0.00013,2]
[346094922,1734705038921,-250.0,0.00013,2]
[346094923,1734705038931,-250.0,0.00013,2]
[346094924,1734705038942,-250.0,0.00013,2]
[346094925,1734705038952,-250.0,0.00013,2]
[346094926,1734705038962,-250.0,0.00013,2]
[346094927,1734705038972,-250.0,0.00013,2]
[346094928,1734705038982,-250.0,0.00013,2]
[346094929,1734705038992,-250.0,0.00013,2]
[346094930,1734705039003,-250.0,0.00013,2]
[346094931,1734705039012,-250.0,0.00013,2]
[346094932,1734705039022,-250.0,0.00013,2]
[346094933,1734705039031,-250.0,0.00013,2]
[346094934,1734705039040,-250.0,0.00013,2]
[346094935,1734705039050,-250.0,0.00013,2]
[346094936,1734705039059,-250.0,0.00013,2]
[346094937,1734705039069,-250.0,0.00013,2]
[346094938,1734705039079,-250.0,0.00013,2]
[346094940,1734705039088,-250.0,0.00013,2]
[346094942,1734705039097,-250.0,0.00013,2]
[346094944,1734705039107,-250.0,0.00013,2]
[346094946,1734705039116,-250.0,0.00013,2]
[346094948,1734705039126,-250.0,0.00013,2]
[346094950,1734705039135,-450.0,0.00013,2]
[346094951,1734705039144,-51542.0,0.00013,2]
[346094952,1734705039159,-25752.0,0.00013,2]
[346094953,1734705039169,-330.27875343,0.00013,3]
[346094954,1734705039179,-19085081.96511711,0.00013,2]
[346094955,1734705039188,-151.0,0.00013,2]
[346094956,1734705039197,-3000.0,0.00013,2]
[346094957,1734705039207,-3000.0,0.00013,2]
[346094958,1734705039217,-151.0,0.00013,2]
[346094959,1734705039226,-151.0,0.00013,2]
[346094960,1734705039236,-166.979139,0.00013,2]
[346094961,1734705039246,-151.0,0.00013,2]
[346094962,1734705039256,-166.979139,0.00013,2]
[346094963,1734705039266,-290.955859,0.00013,2]
[346094964,1734705039280,-290.955859,0.00013,2]
[346094965,1734705039290,-4224.15015274,0.00013,2]
[346094967,1734705039299,-3906788.76770523,0.00013,2]
[346094969,1734705039308,-189.926368,0.00013,2]
[346094971,1734705039318,-463.283799,0.00013,2]
[346094972,1734705039328,-189.926368,0.00013,2]
[346094975,1734705039337,-463.283799,0.00013,2]
[346094977,1734705039347,-154.596974,0.00013,2]
[346094978,1734705039356,-151.0,0.00013,2]
[346094981,1734705039365,-358.13378,0.00013,2]
[346094982,1734705039375,-174.413806,0.00013,2]
[346094984,1734705039384,-358.13378,0.00013,2]
[346094986,1734705039394,-174.413806,0.00013,2]
[346094988,1734705039408,-153.598012,0.00013,2]
[346094990,1734705039418,-190.540625,0.00013,2]
[346094992,1734705039427,-6216.88748,0.00013,2]
[346094994,1734705039436,-6216.88748,0.00013,2]
[346094996,1734705039445,-6216.88748,0.00013,2]
[346094998,1734705039454,-6216.88748,0.00013,2]
[346094999,1734705039465,-151.0,0.00013,2]
[346095000,1734705039475,-155.849621,0.00013,2]
[346095001,1734705039485,-151.0,0.00013,2]
[346095002,1734705039495,-151.0,0.00013,2]
[346095003,1734705039505,-151.0,0.00013,2]
[346095004,1734705039517,-151.0,0.00013,2]
[346095005,1734705039527,-237.25248,0.00013,2]
[346095006,1734705039537,-151.0,0.00013,2]
[346095007,1734705039547,-151.0,0.00013,2]
[346095008,1734705039556,-151.0,0.00013,2]
[346095009,1734705039566,-151.0,0.00013,2]
[346095010,1734705039577,-151.0,0.00013,2]
[346095011,1734705039586,-151.0,0.00013,2]
[346095012,1734705039596,-1677.99633,0.00013,2]
[346095013,1734705039605,-175.978408,0.00013,2]
[346095014,1734705039616,-1677.99633,0.00013,2]
[346095015,1734705039626,-175.978408,0.00013,2]
[346095016,1734705039635,-152.060017,0.00013,2]
[346095017,1734705039645,-175.978408,0.00013,2]
[346095018,1734705039661,-175.978408,0.00013,2]
[346095019,1734705039671,-151.0,0.00013,2]
[346095020,1734705039681,-151.0,0.00013,2]
[346095021,1734705039690,-232.122363,0.00013,2]
[346095022,1734705039700,-151.0,0.00013,2]
[346095023,1734705039709,-151.0,0.00013,2]
[346095024,1734705039719,-151.0,0.00013,2]
[346095025,1734705039728,-151.0,0.00013,2]
[346095026,1734705039737,-410.028164,0.00013,2]
[346095027,1734705039746,-410.028164,0.00013,2]
[346095028,1734705039756,-11174.7707959,0.00013033,2]
[346095029,1734705039765,-8484.4613701,0.00013033,2]
[346095030,1734705039775,-5100.65239129,0.0001305,2]
[346095031,1734705039783,-3000.0,0.0001306,2]
[346095032,1734705039793,-500.0,0.00013068,2]
[346095033,1734705039802,-1000.0,0.000131,2]
[346095034,1734705039811,-3000.0,0.0001313,2]
[346095035,1734705039821,-500.0,0.00013136,2]
[346095036,1734705039829,-154.41,0.00013182,2]
[346095037,1734705039838,-1000.0,0.000132,2]
[346095038,1734705039851,-154.41,0.00013204,2]
[346095039,1734705039860,-154.41,0.00013226,2]
[346095040,1734705039869,-154.41,0.00013248,2]
[346095041,1734705039879,-500.0,0.00013273,2]
[346095042,1734705039888,-3000.0,0.0001339,2]
[346095043,1734705039897,-1569.8,0.00013397,2]
[346095044,1734705039912,-500.0,0.0001341,2]
[346095045,1734705039921,-1139.2,0.00013453,2]
[346095046,1734705039931,-1000.0,0.000135,2]
[346095047,1734705039941,-500.0,0.00013507,2]
[346095048,1734705039950,-359.02289266,0.00013521,2]
[346095049,1734705039960,-1000.0,0.00013521,2]
[346095050,1734705039970,-1000.0,0.00013524,2]
[346095051,1734705039979,-500.0,0.00013547,2]
[346095052,1734705039989,-576.0,0.000136,2]
[346095053,1734705039999,-163.85,0.0001361,2]
[346095054,1734705040009,-500.0,0.00013684,2]
[346095055,1734705040019,-500.31316138,0.00013698,2]
[346095056,1734705040028,-500.0,0.00013699,2]
[346095057,1734705040038,-500.0,0.00013699,2]
[346095058,1734705040047,-500.0,0.00013699,2]
[346095059,1734705040057,-500.0,0.00013699,2]
[346095060,1734705040066,-500.0,0.00013699,2]
[346095061,1734705040075,-285.21,0.00013699,2]
[346095062,1734705040085,-200.0,0.00013699,2]
[346095063,1734705040094,-10542.35,0.00013699,2]
[346095064,1734705040103,-1138.9,0.00013699,2]
[346095065,1734705040112,-410.76,0.00013699,2]
[346095066,1734705040123,-151.0,0.00013699,2]
[346095067,1734705040132,-154.012214,0.00013699,2]
[346095068,1734705040141,-13313.78,0.00013699,2]
[346095069,1734705040150,-2740.22,0.00013699,2]
[346095070,1734705040165,-666.0,0.00013699,2]
[346095071,1734705040175,-824.47,0.000137,2]
[346095072,1734705040184,-824.47,0.000137,2]
[346095073,1734705040193,-824.47,0.000137,2]
[346095074,1734705040203,-824.47,0.000137,2]
[346095075,1734705040212,-824.47,0.000137,2]
[346095076,1734705040221,-500.0,0.00013821,2]
[346095077,1734705040231,-471.47,0.00013958,2]
[346095078,1734705040241,-249.12463699,0.0001397,2]
[346095079,1734705040250,-3000.0,0.0001402,2]
[346095080,1734705040259,-151.0,0.0001407,2]
[346095081,1734705040270,-167.74,0.00014092,2]
[346095082,1734705040279,-151.0,0.0001417,2]
[346095083,1734705040289,-168.85,0.00014262,2]
[346095084,1734705040298,-151.0,0.0001427,2]
[346095085,1734705040310,-153.0,0.00014288,2]
[346095086,1734705040319,-153.0,0.00014288,2]
[346095087,1734705040328,-153.0,0.00014288,2]
[346095088,1734705040338,-153.0,0.00014288,2]
[346095089,1734705040348,-153.0,0.00014288,2]
[346095090,1734705040357,-153.0,0.00014288,2]
[346095091,1734705040515,-153.0,0.00014288,2]
[346095092,1734705040525,-153.0,0.00014288,2]
[346095093,1734705040535,-153.0,0.00014288,2]
[346095094,1734705040545,-153.0,0.00014288,2]
[346095095,1734705040554,-153.0,0.00014288,2]
[346095096,1734705040563,-153.0,0.00014288,2]
[346095097,1734705040572,-153.0,0.00014288,2]
[346095098,1734705040582,-153.0,0.00014288,2]
[346095099,1734705040591,-153.0,0.00014288,2]
[346095100,1734705040601,-153.0,0.00014288,2]
[346095101,1734705040610,-153.0,0.00014288,2]
[346095102,1734705040621,-153.0,0.00014288,2]
[346095103,1734705040633,-500.0,0.00014312,2]
[346095104,1734705040643,-171.18,0.00014343,2]
[346095105,1734705040656,-163.85,0.00014366,2]
[346095106,1734705040665,-165.96,0.00014368,2]
[346095107,1734705040675,-2740.22,0.00014384,2]
[346095108,1734705040684,-666.0,0.00014389,2]
[346095109,1734705040694,-9831.29955311,0.0001439,2]
[346095110,1734705040703,-1500.0,0.00014522,2]
[346095111,1734705040713,-162.27,0.0001455,2]
[346095112,1734705040723,-1958.81,0.00014631,2]
[346095113,1734705040733,-3000.0,0.0001465,2]
[346095114,1734705040743,-1139.2,0.00014947,2]
[346095115,1734705040753,-399.59820415,0.00014999,2]
[346095116,1734705040764,-300.0,0.00015,2]
[346095117,1734705040774,-157341.95424942,0.00015,7]
[346095118,1734705040784,-4165.94373287,0.00015,2]
[346095119,1734705040795,-500.0,0.00015,2]
[346095120,1734705040805,-33062.64268182,0.00015,2]
[346095121,1734705040815,-14862.30461163,0.00015,2]
[346095122,1734705040825,-34851.95399205,0.00015,2]
[346095123,1734705040834,-153.341233,0.00015,2]
[346095124,1734705040844,-151.0,0.00015,2]
[346095125,1734705040853,-151.0,0.00015,2]
[346095126,1734705040862,-410.028164,0.00015,2]
[346095127,1734705040872,-1000.0,0.00015027,2]
[346095128,1734705040881,-300.0,0.00015068,2]
[346095129,1734705040891,-2740.22,0.00015068,2]
[346095130,1734705040907,-296.54141857,0.000151,2]
[346095131,1734705040916,-576.0,0.00015111,2]
[346095132,1734705040925,-163.85,0.00015123,2]
[346095133,1734705040935,-433.33,0.00015131,2]
[346095134,1734705040945,-4161.0,0.000152,2]
[346095135,1734705040955,-151.0,0.000152,2]
[346095136,1734705040964,-151.0,0.000152,2]
[346095137,1734705040974,-151.0,0.000152,2]
[346095138,1734705040983,-151.0,0.000152,2]
[346095139,1734705040993,-175.978408,0.000152,2]
[346095140,1734705041003,-175.978408,0.000152,2]
[346095141,1734705041013,-1223.27822268,0.00015235,2]
[346095142,1734705041023,-3000.0,0.0001527,2]
[346095143,1734705041032,-1517.64,0.000153,2]
[346095144,1734705041041,-151.0,0.000153,2]
[346095145,1734705041051,-151.0,0.000153,2]
[346095146,1734705041061,-151.0,0.000153,2]
[346095147,1734705041071,-151.0,0.000153,2]
[346095148,1734705041085,-151.0,0.000153,2]
[346095149,1734705041096,-153.0,0.00015355,2]
[346095150,1734705041106,-153.0,0.00015355,2]
[346095151,1734705041115,-153.0,0.00015355,2]
[346095152,1734705041124,-153.0,0.00015355,2]
[346095153,1734705041133,-153.0,0.00015355,2]